Workbook

Sheet CUPOS PROGRAMADOS 2018 (hidden)
J2: encuentros vivenciales
A3: Cod Reg | B3: Regional | C3: TOTAL COBERTURA | D3: Cobertura No Victimas GCB | E3: Cobertura No Victimas GRCB | F3: Cobertura No Victimas GECB | G3: Cobertura Victimas GCB | H3: Cobertura Victimas GRCB | I3: Cobertura Victimas GECB | J3: COSTO CUPO MES DE ENCUENTROS VIVENCIALES No Victimas GCB | K3: COSTO CUPO MES DE ENCUENTROS VIVENCIALES No Victimas GRCB | L3: COSTO CUPO MES DE ENCUENTROS VIVENCIALES No Victimas GECB | M3: COSTO CUPO MES DE ENCUENTROS VIVENCIALES Victimas GCB | N3: COSTO CUPO MES DE ENCUENTROS VIVENCIALES Victimas GRCB | O3: COSTO CUPO MES DE ENCUENTROS VIVENCIALES Victimas GECB
A4: 91 | B4: AMAZONAS | C4: =SUM(D4:I4) -> 1800 | D4: 500 | E4: 0 | F4: 1300 | G4: 0 | H4: 0 | I4: 0 | J4: 40400 | K4: 0 | L4: 67316 | M4: 0 | N4: 0 | O4: 0
A5: 5 | B5: ANTIOQUIA | C5: =SUM(D5:I5) -> 13400 | D5: 6550 | E5: 2100 | F5: 575 | G5: 350 | H5: 100 | I5: 3725 | J5: 40051 | K5: 57922 | L5: 61906 | M5: 40051 | N5: 57922 | O5: 61906
A6: 81 | B6: ARAUCA | C6: 4400 | D6: 2120 | E6: 930 | F6: 800 | G6: 80 | H6: 70 | I6: 400 | J6: 41271 | K6: 61901 | L6: 84187 | M6: 41271 | N6: 61901 | O6: 84187
A7: 8 | B7: ATLÁNTICO | C7: 4100 | D7: 2910 | E7: 200 | F7: 750 | G7: 190 | H7: 0 | I7: 50 | J7: 38403 | K7: 47091 | L7: 47091 | M7: 38403 | N7: 0 | O7: 47091
A8: 11 | B8: BOGOTÁ | C8: 4500 | D8: 3800 | E8: 200 | F8: 500 | G8: 0 | H8: 0 | I8: 0 | J8: 37356 | K8: 47349 | L8: 47349 | M8: 0 | N8: 0 | O8: 0
A9: 13 | B9: BOLÍVAR | C9: 6800 | D9: 3150 | E9: 2500 | F9: 550 | G9: 250 | H9: 100 | I9: 250 | J9: 39709 | K9: 54169 | L9: 51430 | M9: 39709 | N9: 54169 | O9: 51430
A10: 15 | B10: BOYACÁ | C10: 5200 | D10: 3460 | E10: 1350 | F10: 100 | G10: 240 | H10: 50 | I10: 0 | J10: 38065 | K10: 50459 | L10: 55914 | M10: 38065 | N10: 50459 | O10: 0
A11: 17 | B11: CALDAS | C11: 5900 | D11: 2620 | E11: 390 | F11: 1450 | G11: 180 | H11: 10 | I11: 1250 | J11: 37318 | K11: 46025 | L11: 47690 | M11: 37318 | N11: 46025 | O11: 47690
A12: 18 | B12: CAQUETÁ | C12: 4200 | D12: 2750 | E12: 840 | F12: 400 | G12: 150 | H12: 60 | I12: 0 | J12: 38227 | K12: 52339 | L12: 51905 | M12: 38227 | N12: 52339 | O12: 0
A13: 85 | B13: CASANARE | C13: 2500 | D13: 1490 | E13: 380 | F13: 300 | G13: 110 | H13: 20 | I13: 200 | J13: 38435 | K13: 49523 | L13: 69784 | M13: 38435 | N13: 49523 | O13: 69784
A14: 19 | B14: CAUCA | C14: 11550 | D14: 6600 | E14: 300 | F14: 2625 | G14: 400 | H14: 0 | I14: 1625 | J14: 40253 | K14: 66731 | L14: 66731 | M14: 40253 | N14: 0 | O14: 66731
A15: 20 | B15: CESAR | C15: 7100 | D15: 4140 | E15: 760 | F15: 1275 | G15: 260 | H15: 40 | I15: 625 | J15: 39260 | K15: 54097 | L15: 51026 | M15: 39260 | N15: 54097 | O15: 51026
A16: 27 | B16: CHOCÓ | C16: 12500 | D16: 4600 | E16: 1500 | F16: 4000 | G16: 0 | H16: 0 | I16: 2400 | J16: 40366 | K16: 53766 | L16: 63296 | M16: 0 | N16: 0 | O16: 63296
A17: 23 | B17: CÓRDOBA | C17: 6800 | D17: 4350 | E17: 1000 | F17: 550 | G17: 250 | H17: 100 | I17: 550 | J17: 38957 | K17: 53801 | L17: 68955 | M17: 38957 | N17: 53801 | O17: 68955
A18: 25 | B18: CUNDINAMARCA | C18: 3400 | D18: 3125 | E18: 0 | F18: 0 | G18: 275 | H18: 0 | I18: 0 | J18: 39496 | K18: 0 | L18: 0 | M18: 39496 | N18: 0 | O18: 0
A19: 94 | B19: GUAINÍA | C19: 1600 | D19: 380 | E19: 300 | F19: 900 | G19: 20 | H19: 0 | I19: 0 | J19: 38138 | K19: 77598 | L19: 77598 | M19: 38138 | N19: 0 | O19: 0
A20: 95 | B20: GUAVIARE | C20: 2500 | D20: 500 | E20: 500 | F20: 650 | G20: 300 | H20: 400 | I20: 150 | J20: 42150 | K20: 61773 | L20: 74304 | M20: 42150 | N20: 61773 | O20: 74304
A21: 41 | B21: HUILA | C21: 4400 | D21: 2920 | E21: 960 | F21: 300 | G21: 180 | H21: 40 | I21: 0 | J21: 38124 | K21: 47897 | L21: 54309 | M21: 38124 | N21: 47897 | O21: 0
A22: 44 | B22: LA GUAJIRA | C22: 5900 | D22: 2900 | E22: 0 | F22: 3000 | G22: 0 | H22: 0 | I22: 0 | J22: 37641 | K22: 0 | L22: 50352 | M22: 0 | N22: 0 | O22: 0
A23: 47 | B23: MAGDALENA | C23: 9700 | D23: 7440 | E23: 675 | F23: 1175 | G23: 360 | H23: 25 | I23: 25 | J23: 39120 | K23: 57103 | L23: 49628 | M23: 39120 | N23: 57103 | O23: 49628
A24: 50 | B24: META | C24: 4400 | D24: 2275 | E24: 1030 | F24: 325 | G24: 125 | H24: 70 | I24: 575 | J24: 37526 | K24: 45292 | L24: 57658 | M24: 37526 | N24: 45292 | O24: 57658
A25: 52 | B25: NARIÑO | C25: 12100 | D25: 6740 | E25: 1130 | F25: 2900 | G25: 360 | H25: 70 | I25: 900 | J25: 39465 | K25: 55872 | L25: 60549 | M25: 39465 | N25: 55872 | O25: 60549
A26: 54 | B26: NORTE DE SANTANDER | C26: 6700 | D26: 3500 | E26: 1800 | F26: 700 | G26: 300 | H26: 100 | I26: 300 | J26: 38796 | K26: 53382 | L26: 56675 | M26: 38796 | N26: 53382 | O26: 56675
A27: 86 | B27: PUTUMAYO | C27: 5700 | D27: 2300 | E27: 830 | F27: 825 | G27: 200 | H27: 70 | I27: 1475 | J27: 41860 | K27: 62683 | L27: 68059 | M27: 41860 | N27: 62683 | O27: 68059
A28: 63 | B28: QUINDÍO | C28: 4000 | D28: 2750 | E28: 600 | F28: 200 | G28: 150 | H28: 0 | I28: 300 | J28: 38852 | K28: 55676 | L28: 55676 | M28: 38852 | N28: 0 | O28: 55676
A29: 66 | B29: RISARALDA | C29: 4100 | D29: 2180 | E29: 500 | F29: 0 | G29: 120 | H29: 0 | I29: 1300 | J29: 37491 | K29: 50743 | L29: 0 | M29: 37491 | N29: 0 | O29: 50743
A30: 88 | B30: SAN ANDRÉS | C30: 1800 | D30: 900 | E30: 0 | F30: 900 | G30: 0 | H30: 0 | I30: 0 | J30: 40637 | K30: 0 | L30: 55088 | M30: 0 | N30: 0 | O30: 0
A31: 68 | B31: SANTANDER | C31: 4800 | D31: 4160 | E31: 300 | F31: 0 | G31: 240 | H31: 0 | I31: 100 | J31: 39390 | K31: 57428 | L31: 0 | M31: 39390 | N31: 0 | O31: 62674
A32: 70 | B32: SUCRE | C32: 4800 | D32: 3090 | E32: 560 | F32: 400 | G32: 210 | H32: 40 | I32: 500 | J32: 39067 | K32: 49283 | L32: 49847 | M32: 39067 | N32: 49283 | O32: 49847
A33: 73 | B33: TOLIMA | C33: 5800 | D33: 3580 | E33: 925 | F33: 550 | G33: 220 | H33: 75 | I33: 450 | J33: 37143 | K33: 45975 | L33: 51724 | M33: 37143 | N33: 45975 | O33: 51724
A34: 76 | B34: VALLE DEL CAUCA | C34: 9800 | D34: 5000 | E34: 1050 | F34: 475 | G34: 300 | H34: 50 | I34: 2925 | J34: 37862 | K34: 45061 | L34: 51466 | M34: 37862 | N34: 45061 | O34: 51466
A35: 97 | B35: VAUPÉS | C35: 1500 | D35: 400 | E35: 300 | F35: 600 | G35: 0 | H35: 0 | I35: 200 | J35: 39865 | K35: 52294 | L35: 75438 | M35: 0 | N35: 0 | O35: 75438
A36: 99 | B36: VICHADA | C36: 1400 | D36: 470 | E36: 370 | F36: 500 | G36: 30 | H36: 30 | I36: 0 | J36: 40943 | K36: 65680 | L36: 71187 | M36: 40943 | N36: 65680 | O36: 0
B37: TOTAL GCB | C37: =SUM(C4:C36) -> 185150 | D37: 103650 | E37: 24280 | F37: 29575 | G37: 5850 | H37: 1520 | I37: 20275 | J37: =+AVERAGE(J4:J36) -> 39140.51515 | K37: =+AVERAGE(K4:K36) -> 47845.84848 | L37: 54367.81818 | M37: 31980.9697 | N37: 32431.42424 | O37: 41713.24242
C39: ESCENARIO META( COBERTURA 2015)
C40: PROGRAMA | D40: COBERTURA | E40: TIEMPO DE EJECUCION | F40: VALOR ALISTAMIENTO | G40: ENCUENTROS VIVENCIALES | H40: ACTIVIDAD DE CIERRE | I40: TOTAL
C41: RURAL | D41: 10000 | E41: 7 | F41: 3576 | G41: 43605 | H41: 7268 | I41: =+(D41*F41)+(D41*E41*G41)+(D41*H41) -> 3160790000
C42: TRADICIONAL | D42: 5000 | E42: 7 | F42: 3576 | G42: 33075 | H42: 8269 | I42: =+(D42*F42)+(D42*E42*G42)+(D42*H42) -> 1216850000
C43: ETNICO | D43: 6375 | E43: 7 | F43: 3576 | G43: 43605 | H43: 7268 | I43: =+(D43*F43)+(D43*E43*G43)+(D43*H43) -> 2015003625
C44: TOTAL | D44: =SUM(D41:D43) -> 21375 | I44: =SUM(I41:I43) -> 6392643625
D47: VALOR | E47: TIEMPO
C48: VALOR TOTAL Victimas GCB | D48: =+#REF! ->  | E48: =+#REF! -> 
C49: VALOR TOTAL Victimas GRCB | D49: =+#REF! ->  | E49: =+#REF! -> 
C50: SUBTOTAL VICTIMAS | D50: =SUM(D48:D49) -> 
D53: VALOR | E53: TIEMPO
C54: VALOR TOTAL No Victimas GCB | D54: =+#REF! ->  | E54: =+#REF! -> 
C55: VALOR TOTAL No Victimas GRCB | D55: =+#REF! ->  | E55: =+#REF! -> 
C56: SUBTOTAL NO VICTIMAS | D56: =SUM(D54:D55) -> 
C58: TOTAL | D58: =+D50+D56 -> 

Sheet LISTAS (hidden)
E3: Modalidad
C4: Regional | D4: Modalidad | E4: Cobertura No GCB | F4: COSTO CUPO MES DE ENCUENTROS VIVENCIALES GCB | H4: Regional | I4: Modalidad | J4: Cobertura No GRCB | K4: COSTO CUPO MES DE ENCUENTROS VIVENCIALES GRCB | M4: Regional | N4: Modalidad | O4: Cobertura No GECB | P4: COSTO CUPO MES DE ENCUENTROS VIVENCIALES GECB | S4: No. DE ENCUENTROS VIVENCIALES AL MES | W4: EncuentrosContratados | Z4: Etapa | AB4: Generaciones Étnicas con Bienestar
A5: 91 | B5: =C5&D5 -> AMAZONAS | C5: AMAZONAS | L5: =M5&N5 -> AMAZONASEtnico | M5: AMAZONAS | N5: Etnico | O5: 1500 | P5: 71623 | R5: 1 | S5: 1 | W5: Tradicional | X5: 8 | Z5: Alistamiento | AB5: Programa para la Promoción del Desarrollo de niñas y niños | AC5: =+P5/7 -> 10231.85714 | AD5: =+AC5*6.5 -> 66507.07143
A6: 5 | B6: =C6&D6 -> ANTIOQUIA | C6: ANTIOQUIA | L6: =M6&N6 -> ANTIOQUIAEtnico | M6: ANTIOQUIA | N6: Etnico | O6: 5475 | P6: 65867 | R6: 2 | S6: 2 | W6: Rural | X6: 12 | Z6: Operación
A7: 81 | B7: ARAUCA | C7: ARAUCA | L7: ARAUCAEtnico | M7: ARAUCA | N7: Etnico | O7: 2400 | P7: 89574 | R7: 3 | S7: 3 | W7: Etnico | X7: 12 | Z7: Cierre
A8: 8 | B8: ATLÁNTICO | C8: ATLÁNTICO | L8: ATLÁNTICOEtnico | M8: ATLÁNTICO | N8: Etnico | O8: 800 | P8: 50104 | R8: 4 | S8: 4 | W8: Tradicional | X8: 8
A9: 11 | B9: BOGOTÁ | C9: BOGOTÁ | L9: BOGOTÁEtnico | M9: BOGOTÁ | N9: Etnico | O9: 500 | P9: 50379 | R9: 5 | S9: 5 | W9: Rural | X9: 12
A10: 13 | B10: BOLÍVAR | C10: BOLÍVAR | L10: BOLÍVAREtnico | M10: BOLÍVAR | N10: Etnico | O10: 1700 | P10: 54721 | S10: 6 | W10: Etnico | X10: 12
A11: 15 | B11: BOYACÁ | C11: BOYACÁ | L11: BOYACÁEtnico | M11: BOYACÁ | N11: Etnico | O11: 100 | P11: 59492 | S11: 7
A12: 17 | B12: CALDAS | C12: CALDAS | L12: CALDASEtnico | M12: CALDAS | N12: Etnico | O12: 2700 | P12: 50742 | S12: 8
A13: 18 | B13: CAQUETÁ | C13: CAQUETÁ | L13: CAQUETÁEtnico | M13: CAQUETÁ | N13: Etnico | O13: 450 | P13: 55227 | S13: 9 | W13: Tradicional
A14: 85 | B14: CASANARE | C14: CASANARE | L14: CASANAREEtnico | M14: CASANARE | N14: Etnico | O14: 800 | P14: 74250 | S14: 10 | W14: Rural
A15: 19 | B15: CAUCA | C15: CAUCA | L15: CAUCAEtnico | M15: CAUCA | N15: Etnico | O15: 5000 | P15: 71001 | S15: 11 | W15: Etnico
A16: 20 | B16: CESAR | C16: CESAR | L16: CESAREtnico | M16: CESAR | N16: Etnico | O16: 2600 | P16: 54291 | S16: 12
A17: 27 | B17: CHOCÓ | C17: CHOCÓ | L17: CHOCÓEtnico | M17: CHOCÓ | N17: Etnico | O17: 11150 | P17: 67347
A18: 23 | B18: CÓRDOBA | C18: CÓRDOBA | L18: CÓRDOBAEtnico | M18: CÓRDOBA | N18: Etnico | O18: 4100 | P18: 73368 | S18: Mes
A19: 25 | B19: CUNDINAMARCA | C19: CUNDINAMARCA | L19: CUNDINAMARCAEtnico | M19: CUNDINAMARCA | N19: Etnico | O19: 0 | P19: 0 | S19: Enero
A20: 94 | B20: GUAINÍA | C20: GUAINÍA | L20: GUAINÍAEtnico | M20: GUAINÍA | N20: Etnico | O20: 900 | P20: 82564 | S20: Febrero
A21: 95 | B21: GUAVIARE | C21: GUAVIARE | L21: GUAVIAREEtnico | M21: GUAVIARE | N21: Etnico | O21: 1125 | P21: 79059 | S21: Marzo
A22: 41 | B22: HUILA | C22: HUILA | L22: HUILAEtnico | M22: HUILA | N22: Etnico | O22: 300 | P22: 57784 | S22: Abril
A23: 44 | B23: LA GUAJIRA | C23: LA GUAJIRA | L23: LA GUAJIRAEtnico | M23: LA GUAJIRA | N23: Etnico | O23: 3150 | P23: 53574 | S23: Mayo
A24: 47 | B24: MAGDALENA | C24: MAGDALENA | L24: MAGDALENAEtnico | M24: MAGDALENA | N24: Etnico | O24: 1700 | P24: 52804 | S24: Junio
A25: 50 | B25: META | C25: META | L25: METAEtnico | M25: META | N25: Etnico | O25: 1375 | P25: 61348 | S25: Julio
A26: 52 | B26: NARIÑO | C26: NARIÑO | L26: NARIÑOEtnico | M26: NARIÑO | N26: Etnico | O26: 4600 | P26: 64423 | S26: Agosto
A27: 54 | B27: NORTE DE SANTANDER | C27: NORTE DE SANTANDER | L27: NORTE DE SANTANDEREtnico | M27: NORTE DE SANTANDER | N27: Etnico | O27: 1400 | P27: 60301 | S27: Septiembre
A28: 86 | B28: PUTUMAYO | C28: PUTUMAYO | L28: PUTUMAYOEtnico | M28: PUTUMAYO | N28: Etnico | O28: 2550 | P28: 72414 | S28: Octubre
A29: 63 | B29: QUINDÍO | C29: QUINDÍO | L29: QUINDÍOEtnico | M29: QUINDÍO | N29: Etnico | O29: 450 | P29: 59238 | S29: Noviembre
A30: 66 | B30: RISARALDA | C30: RISARALDA | L30: RISARALDAEtnico | M30: RISARALDA | N30: Etnico | O30: 1600 | P30: 53991 | S30: Diciembre
A31: 88 | B31: SAN ANDRÉS | C31: SAN ANDRÉS | L31: SAN ANDRÉSEtnico | M31: SAN ANDRÉS | N31: Etnico | O31: 900 | P31: 58613
A32: 68 | B32: SANTANDER | C32: SANTANDER | L32: SANTANDEREtnico | M32: SANTANDER | N32: Etnico | O32: 400 | P32: 66684
A33: 70 | B33: SUCRE | C33: SUCRE | L33: SUCREEtnico | M33: SUCRE | N33: Etnico | O33: 1200 | P33: 53037
A34: 73 | B34: TOLIMA | C34: TOLIMA | L34: TOLIMAEtnico | M34: TOLIMA | N34: Etnico | O34: 1125 | P34: 55034
A35: 76 | B35: VALLE DEL CAUCA | C35: VALLE DEL CAUCA | L35: VALLE DEL CAUCAEtnico | M35: VALLE DEL CAUCA | N35: Etnico | O35: 4450 | P35: 54759
A36: 97 | B36: VAUPÉS | C36: VAUPÉS | L36: VAUPÉSEtnico | M36: VAUPÉS | N36: Etnico | O36: 1100 | P36: 80265
A37: 99 | B37: VICHADA | C37: VICHADA | L37: VICHADAEtnico | M37: VICHADA | N37: Etnico | O37: 975 | P37: 75742
E38: =SUM(E5:E37) -> 0 | F38: =+AVERAGE(F5:F37) ->  | H38: 33472843625 | J38: =SUM(J5:J37) -> 0 | K38: 40432.06061 | O38: =SUM(O5:O37) -> 68575 | P38: =+AVERAGE(P5:P37) -> 61503.63636

Sheet Certificación Supervisor
A1: Nombre del Operador:
A2: Numero de contrato:
A3: CERTIFICACION DE COBERTURA (Corresponde al Supervisor) | F3: Mes de Certificación:
A4: =IFERROR(IF(C6="Alistamiento",2,IF(C6="Operación",3,IF(C6="Cierre",4))),"") -> FALSE
A5: Regional:
A6: Etapa:
A7: El suscrito supervisor:
A8: Cédula de Ciudadanía:
A10: Valor Inicial del Contrato: | C10: Reducciones al contrato: | E10: Adiciones al Contrato: | G10: Valor Total del Contrato: | H10: =B10-D10+F10 -> 0
A11: CERTIFICA:
A12: Mes de Ejecución
A13: Encuentro a realizar * mes | C13: =IF(C6="Alistamiento","",IF(C5="","",12)) -> 
A14: Valor Cupo Mensual según etapa | C14: =IFERROR(VLOOKUP(C5,costos_mod_et,A4,0),"") -> 
A15: Valor Unitario Encuentro | C15: =IFERROR(IF(C6="Alistamiento",C14,IF(C6="Operación",C14/12,IF(C6="Cierre",C14,""))),"") -> 
A16: Cupos Contratados
A17: =IF(C6="","",IF(C6="Alistamiento","(12) Cupos Focalizados",IF(C6="Cierre","(12) Participantes actividad",IF(C6="Operación","(12) Niñas y Niños atendidos")))) -> 
A18: Proyección Grupos Contratados | C18: =IF(C6="Alistamiento","",C16/25) -> 0
A19: Grupos Constituidos
A20: # ENCUENTRO VIVENCIAL EN EL MES DE OPERACIÓN | D20: Número de niñas y niños que participaron en cada Encuentro Vivencial | G20: Subtotales por Encuentro Vivencial
A22: =IF($C$13<1," ",1) -> 1 | D22: 0 | G22: =IFERROR(IF(A22<($C$13+1),$C$15*D22," "),"") -> 
A23: =IF($C$13<2," ",2) -> 2 | D23: 0 | G23: =IFERROR(IF(A23<($C$13+1),$C$15*D23," "),"") -> 
A24: =IF($C$13<3," ",3) -> 3 | D24: 0
A25: =IF($C$13<4," ",4) -> 4 | D25: 0
A26: =IF($C$13<5," ",5) -> 5 | D26: 0
A27: =IF($C$13<6," ",6) -> 6 | D27: 0
A28: =IF($C$13<7," ",7) -> 7 | D28: 0
A29: =IF($C$13<8," ",8) -> 8 | D29: 0
A30: =IF($C$13<9," ",9) -> 9 | D30: 0
A31: =IF($C$13<10," ",10) -> 10 | D31: 0
A32: =IF($C$13<11," ",11) -> 11 | D32: 0
A33: =IF($C$13<12," ",12) -> 12 | D33: 0 | G33: =IFERROR(IF(A33<($C$13+1),$C$15*D33," "),"") -> 
A34: =IF(OR(C6="Alistamiento",C6="Cierre"),"","SUMATORIA ENCUENTROS") -> SUMATORIA ENCUENTROS | D34: =IF(OR(C6="Alistamiento",C6="Cierre"),"",12-(SUM(COUNTIF(D22:F33,0),COUNTIF(D22:F33,""))-24)) -> 0 | E34: VALOR A FACTURAR | H34: =IFERROR(IF(OR(C6="Alistamiento",C6="Cierre"),(C17*C15),(SUM(G22,G23,G24,G25,G26,G27,G28,G29,G30,G31,G32,G33))),"") -> 0
A35: La presente certificación se expide a los__________días del mes de_________________del año ___________
A37: NOMBRE Y FIRMA DEL SUPERVISOR DEL CONTRATO

Sheet Certificación Operador
A1: Nombre del Operador:
A2: Numero de contrato:
A3: CERTIFICACIÓN DE COBERTURA (Corresponde al Operador) | F3: Mes de Certificación:
A4: =IFERROR(IF(C6="Alistamiento",2,IF(C6="Operación",3,IF(C6="Cierre",4))),"") -> FALSE
A5: Regional:
A6: Etapa:
A7: El suscrito representante legal:
A8: Cédula de Ciudadanía:
A10: (4) Valor Inicial del Contrato: | C10: (5) Reducciones al contrato: | E10: (5) Adiciones al Contrato: | G10: (9) Valor Total del Contrato: | H10: =B10-D10+F10 -> 0
A11: CERTIFICA:
A12: Mes de Ejecución
A13: Encuentro a realizar * mes | C13: =IF(C6="Alistamiento","",IF(C5="","",12)) -> 
A14: Valor Cupo Mensual según etapa | C14: =IFERROR(VLOOKUP(C5,costos_mod_et,A4,0),"") -> 
A15: Valor Unitario Encuentro | C15: =IFERROR(IF(C6="Alistamiento",C14,IF(C6="Operación",C14/12,IF(C6="Cierre",C14,""))),"") -> 
A16: Cupos Contratados
A17: =IF(C6="","",IF(C6="Alistamiento","(12) Cupos Focalizados",IF(C6="Cierre","(12) Participantes actividad",IF(C6="Operación","(12) Niñas y Niños atendidos")))) -> 
A18: Proyección Grupos Contratados | C18: =IF(C6="Alistamiento","",C16/25) -> 0
A19: Grupos Constituidos
A20: # ENCUENTRO VIVENCIAL EN EL MES DE OPERACIÓN | D20: Número de niñas y niños que participaron en cada Encuentro Vivencial | G20: Subtotales por Encuentro Vivencial
A22: =IF($C$13<1," ",1) -> 1 | D22: 0 | G22: =IFERROR(IF(A22<($C$13+1),$C$15*D22," "),"") -> 
A23: =IF($C$13<2," ",2) -> 2 | D23: 0 | G23: =IFERROR(IF(A23<($C$13+1),$C$15*D23," "),"") -> 
A24: =IF($C$13<3," ",3) -> 3 | D24: 0
A25: =IF($C$13<4," ",4) -> 4 | D25: 0
A26: =IF($C$13<5," ",5) -> 5 | D26: 0
A27: =IF($C$13<6," ",6) -> 6 | D27: 0
A28: =IF($C$13<7," ",7) -> 7 | D28: 0
A29: =IF($C$13<8," ",8) -> 8 | D29: 0
A30: =IF($C$13<9," ",9) -> 9 | D30: 0
A31: =IF($C$13<10," ",10) -> 10 | D31: 0
A32: =IF($C$13<11," ",11) -> 11 | D32: 0
A33: =IF($C$13<12," ",12) -> 12 | D33: 0 | G33: =IFERROR(IF(A33<($C$13+1),$C$15*D33," "),"") -> 
A34: =IF(OR(C6="Alistamiento",C6="Cierre"),"","SUMATORIA ENCUENTROS") -> SUMATORIA ENCUENTROS | D34: =IF(OR(C6="Alistamiento",C6="Cierre"),"",12-(SUM(COUNTIF(D22:F33,0),COUNTIF(D22:F33,""))-24)) -> 0 | E34: VALOR A FACTURAR | H34: =IFERROR(IF(OR(C6="Alistamiento",C6="Cierre"),(C17*C15),(SUM(G22,G23,G24,G25,G26,G27,G28,G29,G30,G31,G32,G33))),"") -> 0
A35: La presente certificación se expide a los__________días del mes de_________________del año ___________
A37: NOMBRE Y FIRMA DEL REPRESENTANTE LEGAL DEL CONTRATO

Sheet Convenciones
A1: CERTIFICADO SUPERVISOR
A2: Mes certificación: Seleccione el mes que corresponda
A3: Regional: Seleccione el nombre de la Regional
A4: Etapa: Seleccione la etapa a certificar
A5: Valor Inicial del Contrato: Registre el valor Inicial del Contrato
A6: Reducciones al Contrato: Registre las reducciones realizadas al contrato
A7: Adiciones al Contrato: Registre las adiciones realizadas al contrato
A8: Valor Total del Contrato: La matriz calcula el valor total del contrato
A9: Mes de Ejecución: Seleccione el mes de ejecucion
A10: Cupos Contratados: Registre el numero de cupos que se contrataron
A11: Grupos Constituidos : Registre el numero de grupos constituidos
A12: Número de niñas y niños atendidos: Registre el numero de niñas y niños que participaron en cada encuentro vivencial. NO puede ser mayor al numero de cupos contratados según columna A20; en caso de que sea mayor la celda se tornará de COLOR ROJO lo que indica que debe corregir la cifra
A13: Sumatoria Encuentros: La matriz determina automáticamente la SUMATORIA de los encuentros vivenciales realizados
A14: Valor a Facturar: La matriz determina automáticamente el VALOR A FACTURAR en el periodo
A15: fecha que se suscribe la certificación: Registre la fecha de expedición del Certificado
A16: Nombre y Firma: Registre el NOMBRE Y FIRMA del Supervisor del Contrato
A17: Nota 1: Es responsabilidad del contratista la validación de las cifras, así como la verificación y manipulación de las formulas
A19: CERTIFICADO OPERADOR
A20: Mes certificación: Seleccione el mes que corresponda
A21: Regional: Seleccione el nombre de la Regional
A22: Etapa: Seleccione la etapa a certificar
A23: Mes de Ejecución: Seleccione el mes de ejecucion
A24: Cupos Contratados: Registre el numero de cupos que se contrataron
A25: Grupos Constituidos : Registre el numero de grupos constituidos
A26: Número de niñas y niños atendidos: Registre el numero de niñas y niños que participaron en cada encuentro vivencial. NO puede ser mayor al numero de cupos contratados según columna A20; en caso de que sea mayor la celda se tornará de COLOR ROJO lo que indica que debe corregir la cifra
A27: Sumatoria Encuentros: La matriz determina automáticamente la SUMATORIA de los encuentros vivenciales realizados
A28: Valor a Facturar: La matriz determina automáticamente el VALOR A FACTURAR en el periodo
A29: fecha que se suscribe la certificación: Registre la fecha de expedición del Certificado
A30: Nombre y Firma: Registre el NOMBRE Y FIRMA del Supervisor del Contrato
A31: Nota 1: Es responsabilidad del contratista la validación de las cifras, así como la verificación y manipulación de las formulas

Sheet RESUMEN_REGIONAL_UNIDAD_MEDIDA (hidden)
B2: INSTITUTO COLOMBIANO DE BIENESTAR FAMILIAR Cecilia De la Fuente de Lleras Dirección de Abastecimiento | E2: Clasificación de Información: Pública
B4: ESTUDIO DE COSTOS MODELO
B5: Denominación del Bien o Servicio | C5: El programa Generaciones Étnicas con Bienestar tiene como propósito promover la protección integral y proyectos de vida de las niñas y los niños entre los 6 y los 13 años, 11 meses y 29 días que pertenezcan o se autorreconozcan como parte de una comunidad étnica, a partir de su empoderamiento como sujetos de derechos y del fortalecimiento de la corresponsabilidad de la familia, la sociedad y el Estado, propiciando la consolidación de entornos protectores para ellas y ellos.
B7: RESUMEN DE COSTOS POR UNIDAD DE MEDIDA POR REGIONAL - VIGENCIA 2021
B9: TIEMPO | C9: Por el total de la etapa | D9: Por mes | E9: Por el total de la etapa
B10: COSTO NIÑA O NIÑO | C10: Focalizado en la etapa de alistamiento por regional | D10: Atendido en la etapa de atención por regional | E10: Atendido en la etapa de cierre por regional
B11: AMAZONAS | C11: 21303 | D11: 82965 | E11: 19934
B12: ANTIOQUIA | C12: 20754 | D12: 81492 | E12: 19522
B13: ARAUCA | C13: 21735 | D13: 82938 | E13: 20374
B14: ATLANTICO | C14: 22316 | D14: 83845 | E14: 20925
B15: BOGOTA | C15: 25294 | D15: 89220 | E15: 23620
B16: BOLIVAR | C16: 20700 | D16: 81099 | E16: 19429
B17: BOYACA | C17: 46142 | D17: 127307 | E17: 42487
B18: CALDAS | C18: 21125 | D18: 81782 | E18: 19847
B19: CAQUETA | C19: 25294 | D19: 89317 | E19: 23620
B20: CASANARE | C20: 22059 | D20: 83654 | E20: 20767
B21: CAUCA | C21: 21258 | D21: 82300 | E21: 19956
B22: CESAR | C22: 21392 | D22: 82175 | E22: 20066
B23: CHOCO | C23: 21088 | D23: 82255 | E23: 19808
B24: CORDOBA | C24: 21125 | D24: 81799 | E24: 19847
B25: GUAINÍA | C25: 23143 | D25: 86118 | E25: 21604
B26: GUAVIARE | C26: 22694 | D26: 84584 | E26: 21158
B27: HUILA | C27: 32244 | D27: 102008 | E27: 29909
B28: LA GUAJIRA | C28: 22123 | D28: 83550 | E28: 20713
B29: MAGDALENA | C29: 20097 | D29: 80012 | E29: 18952
B30: META | C30: 21866 | D30: 83708 | E30: 20430
B31: NARIÑO | C31: 21434 | D31: 82675 | E31: 20127
B32: NORTE DE SANTANDER | C32: 21357 | D32: 82183 | E32: 20015
B33: PUTUMAYO | C33: 21125 | D33: 81885 | E33: 19847
B34: QUINDIO | C34: 26981 | D34: 92090 | E34: 25023
B35: RISARALDA | C35: 20661 | D35: 80910 | E35: 19428
B36: SAN ANDRES | C36: 22316 | D36: 84036 | E36: 20925
B37: SANTANDER | C37: 25294 | D37: 89359 | E37: 23620
B38: SUCRE | C38: 21666 | D38: 82614 | E38: 20290
B39: TOLIMA | C39: 22046 | D39: 83475 | E39: 20628
B40: VALLE DEL CAUCA | C40: 21434 | D40: 82377 | E40: 20127
B41: VAUPES | C41: 21158 | D41: 83821 | E41: 19934
B42: VICHADA | C42: 23274 | D42: 93718 | E42: 21669
B43: COSTO NIÑA O NIÑO PROMEDIO PONDERADO NACIONAL | C43: 21566 | D43: 82928 | E43: 20232
